bitfinex/quotes_BTCUSD_20240826
["timestamp","ask_amount","ask_price","bid_price","bid_amount"]
[1724713915321,0.0009064,63100.0,63099.0,2.54606118]
[1724713915564,0.0009064,63100.0,63099.0,2.54693629]
[1724713916365,0.0009064,63100.0,63099.0,2.56093629]
[1724713916568,0.0009064,63100.0,63099.0,2.54693629]
[1724713916941,0.0009064,63100.0,63099.0,2.56093629]
[1724713917534,0.0009064,63100.0,63099.0,2.54359707]
[1724713918126,0.0009064,63100.0,63099.0,2.4471108]
[1724713918641,0.0009064,63100.0,63099.0,2.4611104]
[1724713918839,0.0009064,63100.0,63099.0,2.4471104]
[1724713919189,0.0009064,63100.0,63099.0,2.4611104]
[1724713919596,0.0009064,63100.0,63099.0,2.4471104]
[1724713919812,0.0009064,63100.0,63099.0,2.4611104]
[1724713920037,0.0009064,63100.0,63099.0,2.4751104]
[1724713920438,0.0009064,63100.0,63099.0,2.4611104]
[1724713920866,0.0009064,63100.0,63099.0,2.4751104]
[1724713921179,0.0009064,63100.0,63099.0,2.59378088]
[1724713921393,0.0009064,63100.0,63099.0,2.57978088]
[1724713921539,0.0009064,63100.0,63099.0,2.59378088]
[1724713921740,0.0009064,63100.0,63099.0,2.54630688]
[1724713921943,0.0009064,63100.0,63099.0,2.40957346]
[1724713922175,0.0009064,63100.0,63099.0,2.54869509]
[1724713922579,0.0009064,63100.0,63099.0,2.54819571]
[1724713922780,0.0009064,63100.0,63099.0,2.50619571]
[1724713923185,0.0009064,63100.0,63099.0,2.53419571]
[1724713923386,0.0009064,63100.0,63099.0,1.9770223]
[1724713923645,0.0009064,63100.0,63099.0,1.90124635]
[1724713923965,0.0009064,63100.0,63099.0,1.91524635]
[1724713924366,0.0009064,63100.0,63099.0,1.88637164]
[1724713924617,0.0009064,63100.0,63099.0,1.87237164]
[1724713924797,0.0009064,63100.0,63099.0,1.90124806]
[1724713925416,0.0009064,63100.0,63099.0,1.92424806]
[1724713925807,0.0009064,63100.0,63099.0,1.93824806]
[1724713926016,0.0009064,63100.0,63099.0,1.92424806]
[1724713926216,0.0009064,63100.0,63099.0,1.91024806]
[1724713926427,0.0009064,63100.0,63099.0,1.92424806]
[1724713926772,0.0009064,63100.0,63099.0,1.93824806]
[1724713927507,0.0009064,63100.0,63099.0,1.93824804]
[1724713930573,0.0009064,63100.0,63099.0,2.02564804]
[1724713930912,0.0009064,63100.0,63099.0,2.07309688]
[1724713931087,0.0009064,63100.0,63099.0,2.34260935]
[1724713931524,0.0009064,63100.0,63099.0,2.02564735]
[1724713931924,0.0009064,63100.0,63099.0,2.34260935]
[1724713932060,0.0009064,63100.0,63099.0,2.34260913]
[1724713932807,0.0009064,63100.0,63099.0,2.02564713]
[1724713933399,0.0009064,63100.0,63099.0,2.34260913]
[1724713933956,0.0009064,63100.0,63099.0,2.02564713]
[1724713934111,0.0009064,63100.0,63099.0,2.34260913]
[1724713934292,0.0009064,63100.0,63099.0,2.3900485]
[1724713935930,0.0009064,63100.0,63099.0,2.0730865]
[1724713936548,0.0009064,63100.0,63099.0,2.02564713]
[1724713936948,0.0009064,63100.0,63099.0,1.93824713]
[1724713937494,0.0009064,63100.0,63099.0,1.92337164]
[1724713937704,0.0009064,63100.0,63099.0,1.74095111]
[1724713937944,0.0009064,63100.0,63099.0,1.8671479]
[1724713941402,0.0009064,63100.0,63099.0,2.0277479]
[1724713941600,0.0009064,63100.0,63099.0,2.07519169]
[1724713941801,0.0009064,63100.0,63099.0,2.0277479]
[1724713942125,0.0009064,63100.0,63099.0,2.3447099]
[1724713942353,0.0009064,63100.0,63099.0,2.0277479]
[1724713942556,0.0009064,63100.0,63099.0,2.3447099]
[1724713942757,0.0009064,63100.0,63099.0,2.32983364]
[1724713942963,0.0845,63114.0,63113.0,1.110118]
[1724713943109,0.1555,63117.0,63116.0,0.475314]
[1724713943309,0.1555,63117.0,63116.0,0.84281254]
[1724713943513,0.1555,63117.0,63116.0,0.86581254]
[1724713943514,0.0845,63117.0,63116.0,0.86581254]
[1724713943718,0.0845,63117.0,63116.0,1.49956454]
[1724713944122,0.0845,63117.0,63116.0,1.38824401]
[1724713945491,0.0845,63117.0,63116.0,1.38924401]
[1724713946304,0.0845,63117.0,63116.0,1.39724401]
[1724713946666,0.0845,63117.0,63116.0,1.41024401]
[1724713946871,0.0845,63117.0,63116.0,1.40224401]
[1724713947073,0.0845,63117.0,63116.0,1.41524401]
[1724713947735,0.0845,63117.0,63116.0,1.42181988]
[1724713948333,0.0854064,63117.0,63116.0,1.42181988]
[1724713964233,0.0854064,63117.0,63116.0,1.53300487]
[1724713964436,0.0854064,63117.0,63116.0,1.42181988]
[1724713966713,0.0854064,63117.0,63116.0,1.53300487]
[1724713969242,0.0009064,63117.0,63116.0,1.53300487]
[1724713971266,0.0009064,63117.0,63116.0,1.60130487]
[1724713972867,0.0009064,63117.0,63116.0,1.61617813]
[1724713974916,0.0009064,63117.0,63116.0,1.93305413]
[1724713975135,0.0894128,63125.0,63124.0,1.108926]
[1724713975341,0.0894128,63125.0,63124.0,1.399289]
[1724713976470,0.0894128,63125.0,63124.0,1.403289]
[1724713976677,0.0894128,63125.0,63124.0,1.407289]
[1724713977439,0.0691,63129.0,63128.0,0.79204]
[1724713977641,0.0691,63129.0,63128.0,1.082403]
[1724713978232,0.1542,63129.0,63128.0,1.082403]
[1724713978771,0.1542,63129.0,63128.0,1.086403]
[1724713979179,0.0851,63129.0,63128.0,1.086403]
[1724713979326,0.0851,63129.0,63128.0,1.082403]
[1724713979530,0.0851,63129.0,63128.0,1.090403]
[1724713980137,0.0851,63129.0,63128.0,1.414219]
[1724713980513,0.0009053,63135.0,63132.0,0.633592]
[1724713980717,0.0009053,63135.0,63134.0,0.158393]
[1724713980912,0.0009053,63135.0,63134.0,0.31457101]
[1724713981117,0.0860053,63135.0,63134.0,0.97114301]
[1724713981322,0.0860053,63135.0,63134.0,1.28792901]
[1724713981727,0.0009053,63135.0,63134.0,1.28792901]
[1724713982363,0.0009053,63135.0,63134.0,1.30092901]
[1724713983343,0.0009053,63135.0,63134.0,1.40092901]
[1724713983545,0.0009053,63135.0,63134.0,1.41392901]
[1724713983976,0.0009053,63135.0,63134.0,1.40092901]
[1724713984176,0.0009053,63135.0,63134.0,1.41492901]
[1724713984379,0.0009053,63135.0,63134.0,1.40192901]
[1724713984583,0.0009053,63135.0,63134.0,1.38792901]
[1724713984808,0.0009053,63135.0,63134.0,1.40192901]
[1724713985355,0.0009053,63135.0,63134.0,1.38792901]
[1724713985527,0.0009053,63135.0,63134.0,1.47962901]
[1724713985750,0.0009053,63135.0,63134.0,1.40192901]
[1724713986308,0.0009053,63135.0,63134.0,1.40292901]
[1724713986509,0.0009053,63135.0,63134.0,1.47062901]
[1724713986856,0.0009053,63135.0,63134.0,1.79382767]
[1724713988256,0.0009053,63135.0,63134.0,1.77982767]
[1724713988441,0.0009053,63135.0,63134.0,1.79382767]
[1724713989522,0.00087571,63138.0,63137.0,1.22088299]
[1724713989690,0.00087571,63138.0,63137.0,1.500061]
[1724713990632,0.00087571,63138.0,63137.0,1.577661]
[1724713990785,0.00087571,63138.0,63137.0,1.656361]
[1724713990990,0.00087571,63138.0,63137.0,1.973132]
[1724713991239,0.00087571,63138.0,63137.0,1.987132]
[1724713994275,0.00087571,63138.0,63137.0,1.528061]
[1724713997292,0.00087571,63138.0,63137.0,1.670361]
[1724713998264,0.00087571,63138.0,63137.0,1.987132]
[1724714000144,0.00069638,63138.0,63137.0,1.987132]
[1724714003203,0.00069638,63138.0,63137.0,2.00199876]
[1724714004459,0.00069638,63138.0,63137.0,2.31876976]
[1724714004950,0.00069638,63138.0,63137.0,2.00199876]
[1724714005157,0.00069638,63138.0,63137.0,2.31876976]
[1724714005591,0.00069638,63138.0,63137.0,2.30476976]
[1724714005795,0.00069638,63138.0,63137.0,2.31876976]
[1724714006010,0.00069638,63138.0,63137.0,2.29076976]
[1724714006213,0.00069638,63138.0,63137.0,2.30476976]
[1724714006632,0.00069638,63138.0,63137.0,2.31876976]
[1724714006787,0.00069638,63138.0,63137.0,1.98799876]
[1724714007169,0.00069638,63138.0,63137.0,1.98882176]
[1724714007580,0.00069638,63138.0,63137.0,2.00282176]
[1724714008403,0.00069638,63138.0,63137.0,2.00282141]
[1724714008831,0.00069638,63138.0,63137.0,1.987955]
[1724714009070,0.00069638,63138.0,63137.0,2.00282141]
[1724714009278,0.00069638,63138.0,63137.0,2.31959241]
[1724714009485,0.00069638,63138.0,63137.0,2.3195924]
[1724714009698,0.00069638,63138.0,63137.0,2.304726]
[1724714009831,0.00069638,63138.0,63137.0,2.31959241]
[1724714014831,0.00069638,63138.0,63137.0,2.304726]
[1724714015003,0.00069638,63138.0,63137.0,2.31959235]
[1724714015403,0.00069638,63138.0,63137.0,2.29159235]
[1724714015630,0.00069638,63138.0,63137.0,2.30065635]
[1724714015808,0.00069638,63138.0,63137.0,2.31465635]
[1724714016232,0.00069638,63138.0,63137.0,2.30065635]
[1724714016434,0.00069638,63138.0,63137.0,2.32865635]
[1724714016635,0.00069638,63138.0,63137.0,2.31465635]
[1724714017150,0.00069638,63138.0,63137.0,2.32865635]
[1724714017838,0.00906401,63144.0,63143.0,1.99695999]
[1724714018042,0.00906401,63144.0,63143.0,2.29100435]
[1724714018247,0.00906401,63144.0,63143.0,2.276138]
[1724714018448,0.00906401,63144.0,63143.0,2.29100335]
[1724714018648,0.00906401,63144.0,63143.0,2.276138]
[1724714018857,0.00906401,63144.0,63143.0,2.29100302]
[1724714019084,0.00906401,63144.0,63143.0,2.30500302]
[1724714019656,0.00906401,63144.0,63143.0,2.31900302]
[1724714020431,0.00906401,63144.0,63143.0,2.32543719]
[1724714021597,0.00906401,63144.0,63143.0,2.31057217]
[1724714021769,0.00906401,63144.0,63143.0,2.32543723]
[1724714024460,0.00066712,63144.0,63143.0,2.57522418]
[1724714024608,0.00066712,63144.0,63143.0,2.50415763]
[1724714024811,0.00066712,63144.0,63143.0,2.5987513]
[1724714025036,0.00066712,63144.0,63143.0,2.58388624]
[1724714025245,0.00066712,63144.0,63143.0,2.59875003]
[1724714025458,0.00066712,63144.0,63143.0,2.62239845]
[1724714025683,0.00066712,63144.0,63143.0,2.50415636]
[1724714026286,0.00906401,63145.0,63144.0,1.891648]
[1724714026600,0.00906401,63145.0,63144.0,2.45920595]
[1724714026728,0.00906401,63145.0,63144.0,2.36271981]
[1724714028697,0.00906401,63145.0,63144.0,2.37671976]
[1724714029043,0.00906401,63148.0,63147.0,1.742965]
[1724714029283,0.078,63159.0,63158.0,0.941265]
[1724714029284,0.0004,63159.0,63158.0,0.941265]
[1724714029479,0.0776,63168.0,63167.0,1.109173]
[1724714029685,0.0776,63168.0,63167.0,1.793157]
[1724714029907,0.0776,63168.0,63167.0,1.80802074]
[1724714030310,0.0004,63179.0,63178.0,0.791412]
[1724714030517,0.0004,63179.0,63178.0,1.081775]
[1724714030914,0.1408,63179.0,63178.0,1.081775]
[1724714032393,0.1408,63179.0,63178.0,1.092775]
[1724714032749,0.1408,63179.0,63178.0,1.093775]
[1724714032987,0.1408,63179.0,63178.0,1.105775]
[1724714033129,0.1408,63179.0,63178.0,0.99459001]
[1724714033332,0.1408,63179.0,63178.0,0.36146001]
[1724714033539,0.1408,63179.0,63178.0,0.18017801]
[1724714033794,0.1408,63179.0,63178.0,0.1867527]
[1724714034196,0.29908,63179.0,63178.0,0.1867527]
[1724714035596,0.61564,63179.0,63178.0,0.1867527]
[1724714035796,0.61564,63179.0,63178.0,0.18017801]
[1724714035797,0.9322,63179.0,63178.0,0.18017801]
[1724714036825,0.9322,63179.0,63178.0,0.16817801]
[1724714037162,0.9322,63179.0,63178.0,0.17217801]
[1724714037813,0.9322,63179.0,63178.0,0.16017801]
[1724714038084,0.9322,63179.0,63178.0,0.16517801]
[1724714043694,0.61564,63179.0,63178.0,0.16517801]
[1724714045125,0.61564,63179.0,63178.0,0.17158594]
[1724714045325,0.6165464,63179.0,63178.0,0.17158594]
[1724714051308,0.2999864,63179.0,63178.0,0.17158594]
[1724714051657,0.6165464,63179.0,63178.0,0.17158594]
[1724714054480,1.2496664,63179.0,63178.0,0.009]
[1724714054677,1.29699789,63179.0,63178.0,0.009]
[1724714055080,1.29699789,63179.0,63163.0,0.1]
[1724714055081,0.158328,63160.0,63144.0,0.04738498]
[1724714055309,0.158328,63160.0,63143.0,0.063924]
[1724714055310,0.22888499,63160.0,63159.0,0.15700201]
[1724714055512,0.38721299,63160.0,63159.0,0.15700201]
[1724714056107,0.592684,63160.0,63159.0,0.15700201]
[1724714056310,0.592684,63160.0,63159.0,0.15900201]
[1724714057504,0.592684,63160.0,63159.0,0.15700201]
[1724714058127,0.592684,63160.0,63159.0,0.15800201]
[1724714058544,0.593684,63160.0,63159.0,0.15800201]
[1724714058740,0.593684,63160.0,63159.0,0.15700201]
[1724714060601,0.91034,63160.0,63159.0,0.15700201]
[1724714060804,0.90934,63160.0,63159.0,0.15700201]
[1724714061171,0.593684,63160.0,63159.0,0.15700201]
[1724714064375,0.91034,63160.0,63159.0,0.15700201]
[1724714066949,0.001,63160.0,63159.0,0.33833201]
[1724714067177,0.001,63160.0,63159.0,0.65499301]
[1724714067846,0.474941,63166.0,63161.0,0.158323]
[1724714068049,0.158316,63165.0,63162.0,0.15617801]
[1724714068250,0.158312,63167.0,63162.0,0.31450001]
[1724714068450,0.158316,63165.0,63162.0,0.15617801]
[1724714069020,0.158316,63165.0,63162.0,0.31450101]
[1724714069388,0.08,63169.0,63163.0,0.31664]
[1724714069616,0.08,63169.0,63165.0,0.158313]
[1724714069819,0.08,63169.0,63166.0,0.31449001]
[1724714069967,0.08,63169.0,63166.0,0.15617801]
[1724714070359,0.0809053,63169.0,63166.0,0.31449101]
[1724714070574,0.0809053,63169.0,63166.0,1.00984301]
[1724714070575,0.001,63167.0,63166.0,1.00984301]
[1724714070952,0.001,63167.0,63166.0,1.03808456]
[1724714071401,0.0029053,63169.0,63168.0,0.474924]
[1724714071650,0.0029053,63169.0,63168.0,0.65410201]
[1724714072689,0.0009053,63169.0,63168.0,0.65410201]
[1724714074361,0.0009053,63169.0,63168.0,0.66310201]
[1724714074558,0.0009053,63169.0,63168.0,0.67210201]
[1724714077171,0.0009053,63169.0,63168.0,0.98871801]
[1724714081769,0.0009053,63169.0,63168.0,0.98887601]
[1724714084938,0.0009053,63169.0,63168.0,1.38629201]
[1724714086645,0.0009053,63169.0,63168.0,1.45159201]
[1724714087226,0.0009053,63169.0,63168.0,1.55159201]
[1724714094372,0.0009053,63169.0,63168.0,1.55241501]
[1724714105072,0.0009053,63169.0,63168.0,1.47161501]
[1724714106076,0.0009053,63169.0,63168.0,0.77308301]
[1724714106465,0.0009053,63169.0,63168.0,1.08969901]
[1724714109548,0.0009053,63169.0,63168.0,1.55191501]
[1724714109747,0.0009053,63169.0,63168.0,1.56777744]
[1724714109947,0.0009053,63169.0,63168.0,1.88439344]
[1724714110146,0.0009053,63169.0,63168.0,1.93182494]
[1724714110345,0.0009053,63169.0,63168.0,2.03182638]
[1724714110546,0.0009053,63169.0,63168.0,2.05718043]
[1724714110779,0.0009053,63169.0,63168.0,2.04818043]
[1724714110995,0.0009053,63169.0,63168.0,2.03918043]
[1724714111192,0.0009053,63169.0,63168.0,2.02779888]
[1724714111408,0.0009053,63169.0,63168.0,1.96567321]
[1724714111952,0.0009053,63169.0,63168.0,1.94267321]
[1724714112137,0.0009053,63169.0,63168.0,1.95667321]
[1724714112340,0.0009053,63169.0,63168.0,2.06553621]
[1724714113216,0.0009053,63169.0,63168.0,1.97067321]
[1724714113415,0.0009053,63169.0,63168.0,1.99468408]
[1724714114078,0.0009053,63169.0,63168.0,2.0755342]
[1724714114409,0.0009053,63169.0,63168.0,1.99468408]
[1724714114609,0.0009053,63169.0,63168.0,1.98068408]
[1724714114721,0.0009053,63169.0,63168.0,1.99468408]
[1724714115328,0.0009053,63169.0,63168.0,2.0895342]
[1724714116123,0.0009053,63169.0,63168.0,1.99468408]
[1724714116536,0.0009053,63169.0,63168.0,2.0895342]
[1724714117154,0.0009053,63169.0,63168.0,1.99468408]
[1724714118115,0.0009053,63169.0,63168.0,1.99437725]
[1724714118377,0.0009053,63169.0,63168.0,2.38210191]
[1724714118612,0.0009053,63169.0,63168.0,2.31099325]
[1724714119506,3e-07,63169.0,63168.0,2.62760925]
[1724714119722,0.00906401,63181.0,63178.0,1.254577]
[1724714119929,0.00906401,63181.0,63178.0,1.96133836]
[1724714120137,0.00906401,63181.0,63178.0,2.06875004]
[1724714120434,0.00906401,63193.0,63188.0,0.556972]
[1724714120614,0.00906401,63193.0,63188.0,1.64359836]
[1724714122587,0.0794,63190.0,63188.0,1.40098001]
[1724714122823,0.0794,63190.0,63188.0,1.08446501]
[1724714123035,0.15446401,63189.0,63188.0,0.73095001]
[1724714123237,0.15446401,63189.0,63188.0,0.26126651]
[1724714123567,0.15446401,63189.0,63188.0,0.27526651]
[1724714123769,0.15446401,63189.0,63188.0,0.41952351]
[1724714123999,0.15446401,63189.0,63188.0,0.26126651]
[1724714124240,0.15446401,63189.0,63188.0,0.27326651]
[1724714124402,0.15446401,63189.0,63188.0,0.44552351]
[1724714125071,0.15446401,63189.0,63188.0,0.43152351]
[1724714125768,0.15446401,63189.0,63188.0,0.44352351]
[1724714126204,0.15446401,63189.0,63188.0,0.28017801]
[1724714126561,0.15446401,63189.0,63188.0,0.33843501]
[1724714127366,0.15446401,63189.0,63188.0,0.18017801]
[1724714127534,0.15446401,63189.0,63188.0,0.33843501]
[1724714128594,0.15446401,63189.0,63188.0,0.36143501]
[1724714130916,0.15446401,63189.0,63188.0,0.20317801]
[1724714134071,0.15446401,63189.0,63188.0,0.36143501]
[1724714134446,0.08846401,63189.0,63188.0,0.36143501]
[1724714138209,0.00906401,63189.0,63188.0,0.20317801]
[1724714138406,0.00906401,63189.0,63188.0,0.18017801]
[1724714138407,0.94693901,63189.0,63188.0,0.18017801]
[1724714139702,1.26344901,63189.0,63188.0,0.024]
[1724714140342,1.26344901,63189.0,63188.0,0.012]
[1724714140547,1.26344901,63189.0,63188.0,0.02]
[1724714140698,1.33452876,63189.0,63188.0,0.008]
[1724714141150,1.26344901,63189.0,63188.0,0.008]
[1724714141350,0.158282,63178.0,63177.0,0.00515481]
[1724714141551,0.302582,63178.0,63177.0,0.16133282]
[1724714141710,0.302582,63178.0,63177.0,0.17917801]
[1724714143315,0.3023915,63178.0,63177.0,0.17917801]
[1724714143917,0.3023915,63178.0,63177.0,0.18617801]
[1724714144177,0.3023915,63178.0,63177.0,0.19317801]
[1724714144581,0.6189565,63178.0,63177.0,0.19317801]
[1724714145073,0.3023915,63178.0,63177.0,0.19317801]
[1724714145507,0.6189565,63178.0,63177.0,0.19317801]
[1724714145860,0.9355215,63178.0,63177.0,0.17017801]
[1724714146941,1.2520865,63178.0,63177.0,0.17017801]
[1724714153390,0.9355215,63178.0,63177.0,0.17100101]
[1724714156014,0.4686678,63178.0,63168.0,0.000981]
[1724714156166,1.24694592,63169.0,63168.0,0.000981]
[1724714156376,1.81809052,63169.0,63168.0,0.000981]
[1724714156581,1.72336684,63169.0,63168.0,0.000981]
[1724714157141,2.16022718,63169.0,63168.0,0.000981]
[1724714157393,2.04097684,63169.0,63168.0,0.000981]
[1724714157563,2.04097684,63169.0,63168.0,0.001981]
[1724714157766,1.72436684,63169.0,63168.0,0.001981]
[1724714157946,1.84261742,63169.0,63168.0,0.001981]
[1724714158161,1.84261742,63169.0,63168.0,0.002981]
[1724714158162,1.81991871,63169.0,63168.0,0.002981]
[1724714158607,2.13652871,63169.0,63168.0,0.002981]
[1724714159040,1.81991871,63169.0,63168.0,0.002981]
[1724714159217,1.49455752,63169.0,63168.0,0.002981]
[1724714159624,1.81116752,63169.0,63168.0,0.002981]
[1724714160242,1.56543939,63169.0,63168.0,0.002981]
[1724714160439,1.54181426,63169.0,63168.0,0.002981]
[1724714161819,1.49455752,63169.0,63168.0,0.002981]
[1724714162034,0.874325,63169.0,63168.0,0.002981]
[1724714162409,0.874325,63169.0,63168.0,0.15915901]
[1724714162410,0.793525,63169.0,63168.0,0.15915901]
[1724714162619,0.002,63169.0,63168.0,0.15915901]
[1724714162747,0.001,63169.0,63168.0,0.18115901]
[1724714162953,0.001,63169.0,63168.0,0.26395901]
[1724714163162,0.012,63169.0,63168.0,0.26395901]
[1724714163374,0.012,63169.0,63168.0,0.42326701]
[1724714163375,0.021,63169.0,63168.0,0.42326701]
[1724714163609,0.021,63169.0,63168.0,0.42226701]
[1724714163610,0.009,63169.0,63168.0,0.42226701]
[1724714163830,0.009,63169.0,63168.0,1.37211501]
[1724714164050,0.009,63169.0,63168.0,1.44531501]
[1724714164256,0.009,63169.0,63168.0,1.54531501]
[1724714164717,0.009,63169.0,63168.0,1.55066319]
[1724714164922,0.0009053,63178.0,63177.0,0.939425]
[1724714165128,0.0009053,63178.0,63177.0,1.11860301]
[1724714166286,0.0009053,63178.0,63177.0,0.80203301]
[1724714167242,0.0019053,63178.0,63177.0,0.82103301]
[1724714167457,0.0019053,63178.0,63177.0,0.81103301]
[1724714167867,0.0029053,63178.0,63177.0,0.82103301]
[1724714168060,0.0029053,63178.0,63177.0,0.81103301]
[1724714168439,0.0029053,63178.0,63177.0,0.81630775]
[1724714168645,0.0019053,63178.0,63177.0,0.80730775]
[1724714169058,0.0039053,63178.0,63177.0,0.82930775]
[1724714169461,0.0029053,63178.0,63177.0,0.81830775]
[1724714169912,0.0039053,63178.0,63177.0,0.83030775]
[1724714170326,0.0019053,63178.0,63177.0,0.81930775]
[1724714170706,0.0029053,63178.0,63177.0,0.83130775]
[1724714176381,0.0029053,63178.0,63177.0,1.14787775]
[1724714177811,0.0029053,63178.0,63177.0,0.83130775]
[1724714178578,0.0029053,63178.0,63177.0,0.74850775]
[1724714179226,0.0029053,63178.0,63177.0,1.14597775]
[1724714186177,0.0029053,63178.0,63177.0,1.24597775]
[1724714193316,0.0029053,63178.0,63177.0,1.56254775]
[1724714193525,0.0029053,63178.0,63177.0,1.24597775]
[1724714195920,0.0029053,63178.0,63177.0,1.16507775]
[1724714196978,0.0029053,63178.0,63177.0,1.09987775]
[1724714200071,0.0029053,63178.0,63177.0,1.10070175]
[1724714219783,0.0029053,63178.0,63177.0,1.67274667]
[1724714220000,0.0029053,63178.0,63177.0,1.67374667]
[1724714220213,0.00906401,63189.0,63188.0,0.936787]
[1724714220432,0.00906401,63189.0,63188.0,1.90982112]
[1724714220642,0.00906401,63189.0,63188.0,1.90734808]
[1724714221672,0.00906401,63189.0,63188.0,1.97849755]
[1724714221902,0.01006401,63189.0,63188.0,1.99249755]
[1724714222317,0.01006401,63189.0,63188.0,2.00649755]
[1724714222522,0.01006401,63189.0,63188.0,1.92440345]
[1724714222943,0.01006401,63189.0,63188.0,1.92956409]
[1724714223154,0.00906401,63189.0,63188.0,1.91556409]
[1724714223362,0.00906401,63189.0,63188.0,1.90156409]
[1724714223569,0.00906401,63189.0,63188.0,1.85415565]
[1724714223980,0.00906401,63189.0,63188.0,1.86815565]
[1724714224391,0.00906401,63189.0,63188.0,1.85415565]
[1724714224600,0.00906401,63189.0,63188.0,1.86815565]
[1724714224800,0.00906401,63189.0,63188.0,1.88215565]
[1724714225212,0.00906401,63189.0,63188.0,1.86815565]
[1724714225588,0.00906401,63189.0,63188.0,1.88215565]
[1724714226047,0.00901734,63189.0,63188.0,1.86815565]
[1724714226460,0.00901734,63189.0,63188.0,1.88215565]
[1724714226668,0.00901734,63189.0,63188.0,1.86815565]
[1724714227095,0.00901734,63189.0,63188.0,1.88215565]
[1724714227296,0.00901734,63189.0,63188.0,1.86815565]
[1724714227676,0.00901734,63189.0,63188.0,1.88215565]
[1724714228226,0.00901734,63189.0,63188.0,1.86815565]
[1724714228421,0.00901734,63189.0,63188.0,1.88215565]
[1724714229232,0.00901734,63189.0,63188.0,2.18467065]
[1724714229440,0.00901734,63189.0,63188.0,1.86815565]
[1724714229636,0.00901734,63189.0,63188.0,2.15941132]
[1724714229874,0.00901734,63189.0,63188.0,2.14541132]
[1724714230102,0.00901734,63189.0,63188.0,2.13141132]
[1724714230287,0.00901734,63189.0,63188.0,2.14541132]
[1724714230489,0.00901734,63189.0,63188.0,2.13141132]
[1724714230721,0.00901734,63189.0,63188.0,1.43084065]
[1724714231050,0.00901734,63189.0,63188.0,1.44484065]
[1724714231234,0.00901734,63189.0,63188.0,1.06662565]
[1724714231423,0.00901734,63189.0,63188.0,1.08062565]
[1724714231577,0.00901734,63189.0,63188.0,1.06662565]
[1724714232175,0.00901734,63189.0,63188.0,1.08062565]
[1724714232371,0.00901734,63189.0,63188.0,1.39714065]
[1724714232576,0.00901734,63189.0,63188.0,1.50034065]
[1724714233334,0.00901734,63189.0,63188.0,1.47234065]
[1724714233512,0.00901734,63189.0,63188.0,1.48634065]
[1724714234993,0.00901734,63189.0,63188.0,1.50034065]
[1724714235193,0.00901734,63189.0,63188.0,1.56284065]
[1724714236005,0.00901734,63189.0,63188.0,1.56303115]
[1724714239457,0.00901734,63189.0,63188.0,1.88054615]
[1724714240338,0.00901734,63189.0,63188.0,1.85254615]
[1724714240640,0.00901734,63189.0,63188.0,1.86654615]
[1724714241087,0.00901734,63189.0,63188.0,1.85254615]
[1724714241294,0.00901734,63189.0,63188.0,1.86654615]
[1724714241884,0.00901734,63189.0,63188.0,1.88054615]
[1724714242325,0.00901734,63189.0,63188.0,1.86654615]
[1724714242668,0.00901734,63189.0,63188.0,1.88054615]
[1724714246808,0.00901734,63189.0,63188.0,1.88137015]
[1724714247408,0.00901734,63189.0,63188.0,1.88117965]
[1724714250064,0.00901734,63189.0,63188.0,1.99206223]
[1724714253156,0.00901734,63189.0,63188.0,1.96406223]
[1724714253332,0.00901734,63189.0,63188.0,1.97806223]
[1724714253934,0.00901734,63189.0,63188.0,1.97825273]
[1724714254687,0.00901734,63189.0,63188.0,1.99225273]
[1724714255431,0.00901734,63189.0,63188.0,2.30876773]
[1724714255799,0.00901734,63189.0,63188.0,2.45253889]
[1724714255800,3.4e-07,63189.0,63188.0,2.45253889]
[1724714256003,0.00946401,63199.0,63192.0,1.425227]
[1724714256204,0.00946401,63199.0,63192.0,2.36994149]
[1724714256448,0.00946401,63199.0,63198.0,1.565792]
[1724714256660,0.00946401,63199.0,63198.0,1.95585259]
[1724714258987,0.00946401,63199.0,63198.0,1.96985259]
[1724714259188,0.00946401,63199.0,63198.0,1.77967001]
[1724714259392,0.00946401,63199.0,63198.0,1.89055259]
[1724714259568,0.00946401,63199.0,63198.0,1.90455259]
[1724714259770,0.00946401,63199.0,63198.0,1.91055844]
[1724714259974,0.00946401,63199.0,63198.0,1.92455844]
[1724714260170,0.00946401,63199.0,63198.0,1.92555844]
[1724714260371,0.00946401,63199.0,63198.0,1.91155844]
[1724714261533,0.00946401,63199.0,63198.0,1.92555844]
[1724714261880,0.00946401,63199.0,63198.0,1.89755844]
[1724714262084,0.00946401,63199.0,63198.0,1.83515844]
[1724714262288,0.00946401,63199.0,63198.0,1.86315844]
[1724714262671,0.00946401,63199.0,63198.0,1.84915844]
[1724714262872,0.00946401,63199.0,63198.0,1.86315844]
[1724714263744,0.00946401,63199.0,63198.0,1.84831772]
[1724714263901,0.00946401,63199.0,63198.0,1.86315807]
[1724714265842,0.00946401,63199.0,63198.0,2.00625807]
[1724714266242,0.00946401,63199.0,63198.0,2.19691123]
[1724714266458,0.00946401,63199.0,63198.0,2.07726953]
[1724714267435,0.00946401,63199.0,63198.0,2.00625807]
[1724714267798,0.00946401,63199.0,63198.0,2.00625208]
[1724714269433,0.00946401,63199.0,63198.0,2.05360718]
[1724714270964,0.00946401,63199.0,63198.0,2.05360706]
[1724714271168,0.00946401,63199.0,63198.0,2.03960706]
[1724714271380,0.00946401,63199.0,63198.0,2.05360706]
[1724714271531,0.00946401,63199.0,63198.0,2.03960706]
[1724714271778,0.00927354,63199.0,63198.0,2.03960706]
[1724714272180,0.00927354,63199.0,63198.0,2.35607206]
[1724714272380,0.00927354,63199.0,63198.0,2.30871696]
[1724714272584,0.00927354,63199.0,63198.0,2.32271696]
[1724714272765,0.00927354,63199.0,63198.0,2.51082824]
[1724714272971,0.00927354,63199.0,63198.0,2.43980909]
[1724714273165,0.00927354,63199.0,63198.0,2.42580909]
[1724714273473,0.00927354,63199.0,63198.0,2.41180909]
[1724714273751,0.00927354,63199.0,63198.0,2.42580909]
[1724714274174,0.00927354,63199.0,63198.0,2.41180909]
[1724714274312,0.00927354,63199.0,63198.0,2.42580909]
[1724714274509,0.00927354,63199.0,63198.0,2.48196345]
[1724714274711,0.00927354,63199.0,63198.0,2.42580699]
[1724714274911,0.00927354,63199.0,63198.0,2.4390947]
[1724714275363,0.00927354,63199.0,63198.0,2.4250947]
[1724714275539,0.00927354,63199.0,63198.0,2.51007659]
[1724714275911,0.00927354,63199.0,63198.0,2.49607659]
[1724714276574,0.00927354,63199.0,63198.0,2.51007659]
[1724714279308,0.00927354,63199.0,63198.0,2.49607659]
[1724714279645,0.00927354,63199.0,63198.0,2.30871486]
[1724714279830,0.00927354,63199.0,63198.0,2.32271486]
[1724714281453,0.00906401,63208.0,63201.0,1.67710758]
[1724714281639,0.00906401,63208.0,63201.0,1.97111773]
[1724714283237,0.151653,63202.0,63201.0,0.19901015]
[1724714283431,0.151653,63202.0,63201.0,0.65885301]
[1724714283674,0.151653,63202.0,63201.0,1.29175301]